[Event "HUN KO-ch Men 2019"]
[Site "Budapest"]
[Date "2019.12.11"]
[Round "1.2"]
[White "Erdos, Viktor"]
[Black "Kaczur, Florian"]
[Result "1-0"]
[ECO "D55"]
[WhiteElo "2609"]
[BlackElo "2478"]
[Annotator "ChessBase"]
[PlyCount "63"]
[EventDate "2019.12.10"]
[EventType "k.o."]
[EventCountry "HUN"]
[SourceTitle "playchess.com"]
[Source "ChessBase"]
[SourceQuality "1"]
[TimeControl "40/5400+30:1800+30"]

1. Nf3 {[%emt 0:04:22]} d5 {[%emt 0:00:27]} 2. d4 {[%emt 0:00:06]} Nf6 {[%emt 0:00:03]} 3. c4 {[%emt 0:00:06]} e6 {[%emt 0:00:03]} 4. Nc3 {[%emt 0:00:19]} Be7 {[%emt 0:00:55]} 5. Bg5 {[%emt 0:02:26]} h6 {[%emt 0:00:19]} 6. Bxf6 {[%emt 0:00:07]} Bxf6 {[%emt 0:00:04]} 7. e3 {[%emt 0:00:05]} O-O {[%emt 0:03:20]} 8. Rc1 {[%emt 0:00:10]} c6 {[%emt 0:00:04]} 9. Bd3 {[%emt 0:00:06]} Nd7 {[%emt 0:00:36]} 10. O-O {[%emt 0:00:36]} dxc4 {[%emt 0:01:16]} 11. Bxc4 {[%emt 0:00:06]} e5 {[%emt 0:02:48]} 12. d5 {[%emt 0:00:38]} Nb6 {[%emt 0:01:39]} 13. b3 {[%emt 0:00:22]} e4 {[%emt 0:15:16]} 14. Nxe4 {[%emt 0:03:43]} cxd5 {[%emt 0:00:20]} 15. Nxf6+ {[%emt 0:00:33]} Qxf6 {[%emt 0:00:05]} 16. Be2 {[%emt 0:01:38]} Be6 {[%emt 0:09:52]} 17. Qd2 {[%emt 0:06:29]} Rfc8 {[%emt 0:05:31]} 18. Nd4 {[%emt 0:07:46]} Rxc1 {[%emt 0:07:54]} 19. Rxc1 {[%emt 0:00:12]} Rc8 {[%emt 0:00:57]} 20. Rd1 {[%emt 0:04:20]} Nd7 {[%emt 0:06:50]} 21. Qa5 {[%emt 0:13:55]} a6 {[%emt 0:03:23]} 22. Qb4 {[%emt 0:00:11]} Nc5 {[%emt 0:02:27]} 23. Bf3 {[%emt 0:01:43]} Qe7 {[%emt 0:08:57]} 24. Rc1 {[%emt 0:11:28]} Qc7 {[%emt 0:01:39]} 25. Nxe6 {[%emt 0:21:05]} fxe6 {[%emt 0:00:24]} 26. Qd4 {[%emt 0:00:42]} a5 {[%emt 0:05:51]} 27. a3 {[%emt 0:00:56]} Nxb3 {[%emt 0:10:13]} 28. Rxc7 {[%emt 0:00:14]} Rxc7 {[%emt 0:00:03]} 29. Qg4 {[%emt 0:03:03]} Rc1+ {[%emt 0:00:17]} 30. Bd1 {[%emt 0:00:02]} Nc5 {[%emt 0:00:12]} 31. g3 {[%emt 0:03:23]} Kf7 {[%emt 0:00:04]} 32. e4 {[%emt 0:01:48]} 1-0

[Event "HUN KO-ch Men 2019"]
[Site "Budapest"]
[Date "2019.12.11"]
[Round "1.2"]
[White "Acs, Peter"]
[Black "Mihok, Oliver"]
[Result "1-0"]
[ECO "B47"]
[WhiteElo "2580"]
[BlackElo "2567"]
[Annotator "ChessBase"]
[PlyCount "71"]
[EventDate "2019.12.10"]
[EventType "k.o."]
[EventCountry "HUN"]
[SourceTitle "playchess.com"]
[Source "ChessBase"]
[SourceQuality "1"]
[TimeControl "40/5400+30:1800+30"]

1. e4 {[%emt 0:00:06]} c5 {[%emt 0:05:42]} 2. Nf3 {[%emt 0:00:22]} e6 {[%emt 0:00:17]} 3. d4 {[%emt 0:00:28]} cxd4 {[%emt 0:00:04]} 4. Nxd4 {[%emt 0:00:10]} Nc6 {[%emt 0:00:03]} 5. Nc3 {[%emt 0:00:36]} Qc7 {[%emt 0:00:13]} 6. g3 {[%emt 0:00:39]} a6 {[%emt 0:00:22]} 7. Bg2 {[%emt 0:00:14]} Nf6 {[%emt 0:00:06]} 8. O-O {[%emt 0:00:29]} d6 {[%emt 0:00:04]} 9. Nxc6 {[%emt 0:08:53]} bxc6 {[%emt 0:00:04]} 10. Na4 {[%emt 0:00:14]} Bb7 {[%emt 0:00:24]} 11. c4 {[%emt 0:01:39]} c5 {[%emt 0:03:13]} 12. Nc3 {[%emt 0:01:48]} Be7 {[%emt 0:01:16]} 13. f4 {[%emt 0:06:29]} O-O {[%emt 0:02:18]} 14. g4 {[%emt 0:03:57]} Nd7 {[%emt 0:07:23]} 15. g5 {[%emt 0:00:39]} Rfe8 {[%emt 0:02:03]} 16. b3 {[%emt 0:07:20]} Rad8 {[%emt 0:06:17]} 17. Qg4 {[%emt 0:05:04]} Bf8 {[%emt 0:05:32]} 18. Bb2 {[%emt 0:00:51]} g6 {[%emt 0:11:16]} 19. f5 {[%emt 0:02:30]} Ne5 {[%emt 0:03:55]} 20. Qg3 {[%emt 0:01:28]} Bc6 {[%emt 0:01:23]} 21. Rf2 {[%emt 0:15:50]} Qb7 {[%emt 0:01:29]} 22. Raf1 {[%emt 0:01:39]} a5 {[%emt 0:04:38]} 23. h4 {[%emt 0:12:28]} Bg7 {[%emt 0:04:26]} 24. f6 {[%emt 0:00:44]} Bf8 {[%emt 0:00:05]} 25. h5 {[%emt 0:00:45]} a4 {[%emt 0:02:17]} 26. Nxa4 {[%emt 0:05:39]} Bxe4 {[%emt 0:02:11]} 27. Bxe5 {[%emt 0:00:44]} dxe5 {[%emt 0:00:56]} 28. hxg6 {[%emt 0:00:26]} hxg6 {[%emt 0:00:36]} 29. Nc3 {[%emt 0:04:09]} Bxg2 {[%emt 0:00:37]} 30. Rxg2 {[%emt 0:00:09]} Rd4 {[%emt 0:22:09]} 31. Rh2 {[%emt 0:01:04]} Red8 {[%emt 0:00:14]} 32. Qh3 {[%emt 0:02:01]} Bh6 {[%emt 0:00:03]} 33. Ne2 {[%emt 0:05:07]} Qe4 {[%emt 0:07:38]} 34. Qxh6 {[%emt 0:01:18]} Qe3+ {[%emt 0:00:15]} 35. Rhf2 {[%emt 0:01:18]} Rg4+ {[%emt 0:00:57]} 36. Kh2 {[%emt 0:00:24]} 1-0

[Event "HUN KO-ch Men 2019"]
[Site "Budapest"]
[Date "2019.12.11"]
[Round "1.2"]
[White "Balog, Imre"]
[Black "Antal, Gergely"]
[Result "1-0"]
[ECO "A05"]
[WhiteElo "2558"]
[BlackElo "2563"]
[Annotator "ChessBase"]
[PlyCount "57"]
[EventDate "2019.12.10"]
[EventType "k.o."]
[EventCountry "HUN"]
[SourceTitle "playchess.com"]
[Source "ChessBase"]
[SourceQuality "1"]
[TimeControl "40/5400+30:1800+30"]

1. Nf3 {[%emt 0:00:04]} Nf6 {[%emt 0:03:57]} 2. b3 {[%emt 0:01:21]} g6 {[%emt 0:00:09]} 3. Bb2 {[%emt 0:00:11]} Bg7 {[%emt 0:00:03]} 4. c4 {[%emt 0:00:23]} O-O {[%emt 0:00:38]} 5. Nc3 {[%emt 0:00:56]} c5 {[%emt 0:02:46]} 6. g3 {[%emt 0:01:56]} d6 {[%emt 0:00:19]} 7. Bg2 {[%emt 0:00:27]} e5 {[%emt 0:00:17]} 8. O-O {[%emt 0:02:13]} Nc6 {[%emt 0:00:20]} 9. e3 {[%emt 0:03:14]} Ne8 {[%emt 0:02:57]} 10. Ne1 {[%emt 0:05:24]} Nc7 {[%emt 0:00:19]} 11. f4 {[%emt 0:02:17]} exf4 {[%emt 0:06:31]} 12. Rxf4 {[%emt 0:03:59]} Be6 {[%emt 0:03:16]} 13. Nd3 {[%emt 0:00:57]} Ne5 {[%emt 0:11:13]} 14. Qf1 {[%emt 0:03:20]} Rb8 {[%emt 0:01:12]} 15. Ne4 {[%emt 0:02:35]} f5 {[%emt 0:02:52]} 16. Nexc5 {[%emt 0:09:53]} dxc5 {[%emt 0:02:23]} 17. Nxe5 {[%emt 0:06:43]} Qxd2 {[%emt 0:00:12]} 18. Rf2 {[%emt 0:00:39]} Qa5 {[%emt 0:14:09]} 19. Rd1 {[%emt 0:04:02]} Ne8 {[%emt 0:17:38]} 20. e4 {[%emt 0:03:42]} Qc7 {[%emt 0:05:57]} 21. exf5 {[%emt 0:00:48]} Rxf5 {[%emt 0:00:14]} 22. Rxf5 {[%emt 0:00:46]} gxf5 {[%emt 0:00:35]} 23. Qe2 {[%emt 0:03:21]} Nf6 {[%emt 0:00:55]} 24. Nc6 {[%emt 0:02:22]} Re8 {[%emt 0:01:11]} 25. Rd8 {[%emt 0:00:56]} Qf7 {[%emt 0:03:42]} 26. Rxe8+ {[%emt 0:01:18]} Nxe8 {[%emt 0:01:07]} 27. Nd8 {[%emt 0:00:17]} Qe7 {[%emt 0:02:43]} 28. Nxe6 {[%emt 0:00:06]} Bxb2 {[%emt 0:00:04]} 29. Qxb2 {[%emt 0:00:05]} 1-0

[Event "HUN KO-ch Men 2019"]
[Site "Budapest"]
[Date "2019.12.11"]
[Round "1.2"]
[White "Aczel, Gergely"]
[Black "Banusz, Tamas"]
[Result "0-1"]
[ECO "D20"]
[WhiteElo "2523"]
[BlackElo "2621"]
[Annotator "ChessBase"]
[PlyCount "126"]
[EventDate "2019.12.10"]
[EventType "k.o."]
[EventCountry "HUN"]
[SourceTitle "playchess.com"]
[Source "ChessBase"]
[SourceQuality "1"]
[TimeControl "40/5400+30:1800+30"]

1. d4 {[%emt 0:00:03]} d5 {[%emt 0:01:22]} 2. c4 {[%emt 0:00:09]} dxc4 {[%emt 0:00:10]} 3. e3 {[%emt 0:00:15]} e5 {[%emt 0:01:08]} 4. Bxc4 {[%emt 0:00:31]} exd4 {[%emt 0:01:36]} 5. exd4 {[%emt 0:00:03]} Bd6 {[%emt 0:00:09]} 6. Nf3 {[%emt 0:00:07]} Nf6 {[%emt 0:00:08]} 7. Qe2+ {[%emt 0:00:10]} Qe7 {[%emt 0:00:05]} 8. Qxe7+ {[%emt 0:00:06]} Bxe7 {[%emt 0:00:05]} 9. O-O {[%emt 0:00:09]} Nbd7 {[%emt 0:00:17]} 10. Nc3 {[%emt 0:00:49]} Nb6 {[%emt 0:00:24]} 11. Bb3 {[%emt 0:00:08]} c6 {[%emt 0:00:09]} 12. Re1 {[%emt 0:10:19]} Nfd5 {[%emt 0:00:08]} 13. Bd2 {[%emt 0:00:15]} Be6 {[%emt 0:00:45]} 14. Bg5 {[%emt 0:01:29]} Bb4 {[%emt 0:19:42]} 15. a3 {[%emt 0:01:44]} Bxc3 {[%emt 0:00:43]} 16. bxc3 {[%emt 0:00:21]} h6 {[%emt 0:00:38]} 17. Bd2 {[%emt 0:10:25]} Nc7 {[%emt 0:10:15]} 18. Bf4 {[%emt 0:07:06]} Ncd5 {[%emt 0:01:03]} 19. Bd2 {[%emt 0:16:16]} Nc7 {[%emt 0:00:31]} 20. c4 {[%emt 0:00:53]} O-O {[%emt 0:05:57]} 21. Rac1 {[%emt 0:01:00]} Rfd8 {[%emt 0:01:21]} 22. h3 {[%emt 0:05:33]} Rac8 {[%emt 0:06:35]} 23. a4 {[%emt 0:03:10]} Ne8 {[%emt 0:03:41]} 24. a5 {[%emt 0:02:11]} Nd7 {[%emt 0:01:07]} 25. Be3 {[%emt 0:10:56]} Ndf6 {[%emt 0:01:45]} 26. Ne5 {[%emt 0:04:01]} Nd6 {[%emt 0:07:13]} 27. Ba4 {[%emt 0:00:17]} Nd7 {[%emt 0:07:06]} 28. d5 {[%emt 0:11:52]} Nxe5 {[%emt 0:06:33]} 29. dxe6 {[%emt 0:00:14]} fxe6 {[%emt 0:05:41]} 30. c5 {[%emt 0:05:12]} Nb5 {[%emt 0:01:53]} 31. Bb3 {[%emt 0:00:15]} Nc7 {[%emt 0:03:20]} 32. Bf4 {[%emt 0:04:42]} Nd3 {[%emt 0:00:46]} 33. Bxc7 {[%emt 0:00:02]} Rxc7 {[%emt 0:00:07]} 34. Rxe6 {[%emt 0:00:45]} Nxc1 {[%emt 0:07:37]} 35. Re8+ {[%emt 0:00:04]} Kh7 {[%emt 0:00:04]} 36. Bg8+ {[%emt 0:00:11]} Kg6 {[%emt 0:00:42]} 37. Rxd8 {[%emt 0:00:02]} Ne2+ {[%emt 0:00:58]} 38. Kh2 {[%emt 0:00:20]} Kf6 {[%emt 0:00:54]} 39. Bc4 {[%emt 0:05:31]} Nc3 {[%emt 0:00:22]} 40. Rd6+ {[%emt 0:00:00]} Ke5 {[%emt 0:00:00]} 41. a6 {[%emt 0:22:41]} bxa6 {[%emt 0:05:02]} 42. g3 {[%emt 0:00:20]} Nd5 {[%emt 0:01:37]} 43. Bxd5 {[%emt 0:02:13]} cxd5 {[%emt 0:00:02]} 44. Rxa6 {[%emt 0:00:09]} Kd4 {[%emt 0:04:12]} 45. c6 {[%emt 0:00:18]} Kc5 {[%emt 0:02:27]} 46. Kg2 {[%emt 0:00:07]} Kb5 {[%emt 0:00:18]} 47. Ra1 {[%emt 0:00:38]} a5 {[%emt 0:00:16]} 48. Kf3 {[%emt 0:01:42]} Rxc6 {[%emt 0:00:13]} 49. Kf4 {[%emt 0:02:38]} Rc2 {[%emt 0:05:06]} 50. Rb1+ {[%emt 0:01:07]} Kc4 {[%emt 0:00:40]} 51. Ra1 {[%emt 0:00:20]} Rxf2+ {[%emt 0:02:52]} 52. Ke3 {[%emt 0:00:16]} Rf5 {[%emt 0:02:16]} 53. Rc1+ {[%emt 0:00:38]} Kb3 {[%emt 0:00:22]} 54. g4 {[%emt 0:00:18]} Rf7 {[%emt 0:00:46]} 55. Rb1+ {[%emt 0:03:24]} Kc3 {[%emt 0:01:02]} 56. Rc1+ {[%emt 0:00:17]} Kb2 {[%emt 0:00:40]} 57. Rc5 {[%emt 0:00:04]} a4 {[%emt 0:00:07]} 58. Rb5+ {[%emt 0:00:48]} Kc3 {[%emt 0:00:14]} 59. Rc5+ {[%emt 0:00:13]} Kb3 {[%emt 0:01:02]} 60. Rxd5 {[%emt 0:00:53]} a3 {[%emt 0:00:04]} 61. Ra5 {[%emt 0:03:12]} a2 {[%emt 0:00:35]} 62. Kd2 {[%emt 0:00:21]} Rf4 {[%emt 0:00:28]} 63. Kd3 {[%emt 0:00:44]} Ra4 {[%emt 0:00:26] Kd4} 0-1

[Event "HUN KO-ch Men 2019"]
[Site "Budapest"]
[Date "2019.12.11"]
[Round "1.2"]
[White "Horvath, Csaba"]
[Black "Berkes, Ferenc"]
[Result "1/2-1/2"]
[ECO "D10"]
[WhiteElo "2513"]
[BlackElo "2656"]
[Annotator "ChessBase"]
[PlyCount "28"]
[EventDate "2019.12.10"]
[EventType "k.o."]
[EventCountry "HUN"]
[SourceTitle "playchess.com"]
[Source "ChessBase"]
[SourceQuality "1"]
[TimeControl "40/5400+30:1800+30"]

1. d4 {[%emt 0:00:27]} d5 {[%emt 0:00:25]} 2. c4 {[%emt 0:00:36]} c6 {[%emt 0:00:10]} 3. Nc3 {[%emt 0:01:40]} Nf6 {[%emt 0:00:07]} 4. e3 {[%emt 0:00:26]} a6 {[%emt 0:00:12]} 5. b3 {[%emt 0:02:15]} Bf5 {[%emt 0:00:57]} 6. Bd3 {[%emt 0:00:57]} Bxd3 {[%emt 0:04:58]} 7. Qxd3 {[%emt 0:00:36]} e6 {[%emt 0:00:10]} 8. Nf3 {[%emt 0:01:07]} Nbd7 {[%emt 0:00:51]} 9. O-O {[%emt 0:00:33]} Bb4 {[%emt 0:05:57]} 10. Bb2 {[%emt 0:03:20]} O-O {[%emt 0:01:47]} 11. Rfd1 {[%emt 0:07:25]} Qe7 {[%emt 0:01:41]} 12. a3 {[%emt 0:02:49]} Ba5 {[%emt 0:00:35]} 13. Nd2 {[%emt 0:12:01]} Rad8 {[%emt 0:11:50]} 14. e4 {[%emt 0:18:34]} dxe4 {[%emt 0:08:20]} 1/2-1/2

[Event "HUN KO-ch Men 2019"]
[Site "Budapest"]
[Date "2019.12.11"]
[Round "1.2"]
[White "Nemeth, Miklos"]
[Black "Hera, Imre Jr."]
[Result "1/2-1/2"]
[ECO "C50"]
[WhiteElo "2496"]
[BlackElo "2619"]
[Annotator "ChessBase"]
[PlyCount "32"]
[EventDate "2019.12.10"]
[EventType "k.o."]
[EventCountry "HUN"]
[SourceTitle "playchess.com"]
[Source "ChessBase"]
[SourceQuality "1"]
[TimeControl "40/5400+30:1800+30"]

1. e4 {[%emt 0:03:33]} e5 {[%emt 0:01:01]} 2. Nf3 {[%emt 0:03:14]} Nc6 {[%emt 0:00:07]} 3. Bc4 {[%emt 0:00:05]} Bc5 {[%emt 0:00:03]} 4. O-O {[%emt 0:00:07]} Nf6 {[%emt 0:00:05]} 5. d3 {[%emt 0:00:05]} O-O {[%emt 0:00:04]} 6. Nbd2 {[%emt 0:00:20]} d6 {[%emt 0:00:08]} 7. c3 {[%emt 0:00:06]} a6 {[%emt 0:00:10]} 8. Bb3 {[%emt 0:01:00]} Ba7 {[%emt 0:00:25]} 9. h3 {[%emt 0:00:37]} Nh5 {[%emt 0:01:42]} 10. Nc4 {[%emt 0:03:11]} Qf6 {[%emt 0:00:53]} 11. Ne3 {[%emt 0:03:23]} Nf4 {[%emt 0:00:37]} 12. Nd5 {[%emt 0:01:20]} Nxd5 {[%emt 0:00:08]} 13. Bxd5 {[%emt 0:02:36]} h6 {[%emt 0:35:34]} 14. Be3 {[%emt 0:06:55]} Ne7 {[%emt 0:00:12]} 15. Bb3 {[%emt 0:00:11]} Ng6 {[%emt 0:00:07]} 16. Kh2 {[%emt 0:00:30]} c6 {[%emt 0:09:09]} 1/2-1/2

[Event "HUN KO-ch Men 2019"]
[Site "Budapest"]
[Date "2019.12.11"]
[Round "1.2"]
[White "Sipos, Istvan"]
[Black "Papp, Gabor"]
[Result "0-1"]
[ECO "D41"]
[WhiteElo "2473"]
[BlackElo "2582"]
[Annotator "ChessBase"]
[PlyCount "57"]
[EventDate "2019.12.10"]
[EventType "k.o."]
[EventCountry "HUN"]
[SourceTitle "playchess.com"]
[Source "ChessBase"]
[SourceQuality "1"]
[TimeControl "40/5400+30:1800+30"]

1. d4 {[%emt 0:00:12]} Nf6 {[%emt 0:00:17]} 2. c4 {[%emt 0:00:06]} e6 {[%emt 0:00:17]} 3. Nc3 {[%emt 0:00:15]} d5 {[%emt 0:00:38]} 4. Nf3 {[%emt 0:00:45]} c5 {[%emt 0:00:51]} 5. cxd5 {[%emt 0:05:41]} Nxd5 {[%emt 0:00:15]} 6. e3 {[%emt 0:01:33]} cxd4 {[%emt 0:00:22]} 7. exd4 {[%emt 0:00:14]} Nxc3 {[%emt 0:00:06]} 8. bxc3 {[%emt 0:00:04]} Qc7 {[%emt 0:00:05]} 9. Bd2 {[%emt 0:07:13]} Nd7 {[%emt 0:00:52]} 10. Bd3 {[%emt 0:00:59]} b6 {[%emt 0:00:15]} 11. Ng5 {[%emt 0:06:10]} Bb7 {[%emt 0:04:00]} 12. Qg4 {[%emt 0:03:48]} Nf6 {[%emt 0:02:03]} 13. Bb5+ {[%emt 0:02:32]} Bc6 {[%emt 0:00:13]} 14. Qe2 {[%emt 0:28:24]} Bd6 {[%emt 0:10:43]} 15. O-O {[%emt 0:19:10]} Bxh2+ {[%emt 0:09:51]} 16. Kh1 {[%emt 0:00:04]} Bd6 {[%emt 0:00:04]} 17. d5 {[%emt 0:04:49]} Nxd5 {[%emt 0:10:45]} 18. Rae1 {[%emt 0:03:03]} O-O {[%emt 0:03:29]} 19. Qe4 {[%emt 0:01:11]} g6 {[%emt 0:00:11]} 20. Qh4 {[%emt 0:04:10]} Nf6 {[%emt 0:09:11]} 21. Bxc6 {[%emt 0:01:54]} Qxc6 {[%emt 0:00:07]} 22. c4 {[%emt 0:01:40]} Rac8 {[%emt 0:07:22]} 23. Bc3 {[%emt 0:02:03]} e5 {[%emt 0:00:04]} 24. f4 {[%emt 0:03:49]} Qxc4 {[%emt 0:01:22]} 25. Ba1 {[%emt 0:01:32]} h5 {[%emt 0:03:05]} 26. Qh3 {[%emt 0:00:56]} Ng4 {[%emt 0:01:31]} 27. Ne4 {[%emt 0:00:23]} Bb4 {[%emt 0:01:14]} 28. fxe5 {[%emt 0:00:49]} Bxe1 {[%emt 0:00:24]} 29. Rxe1 0-1

[Event "HUN KO-ch Men 2019"]
[Site "Budapest"]
[Date "2019.12.11"]
[Round "1.3"]
[White "Berkes, Ferenc"]
[Black "Horvath, Csaba"]
[Result "1/2-1/2"]
[ECO "E12"]
[WhiteElo "2656"]
[BlackElo "2513"]
[Annotator "ChessBase"]
[PlyCount "112"]
[EventDate "2019.12.10"]
[EventType "k.o."]
[EventCountry "HUN"]
[SourceTitle "playchess.com"]
[Source "ChessBase"]
[SourceQuality "1"]
[TimeControl "900+5"]

1. d4 {[%emt 0:00:02]} Nf6 {[%emt 0:00:01]} 2. Nf3 {[%emt 0:00:05]} b6 {[%emt 0:00:01]} 3. c4 {[%emt 0:00:04]} e6 {[%emt 0:00:01]} 4. a3 {[%emt 0:00:01]} Bb7 {[%emt 0:00:02]} 5. Bf4 {[%emt 0:00:02]} d6 {[%emt 0:00:19]} 6. Nc3 {[%emt 0:00:07]} Nbd7 {[%emt 0:00:01]} 7. Qc2 {[%emt 0:00:10]} g6 {[%emt 0:00:13]} 8. e4 {[%emt 0:00:02]} Bg7 {[%emt 0:00:01]} 9. Rd1 {[%emt 0:00:11]} O-O {[%emt 0:00:11]} 10. Be2 {[%emt 0:00:02]} Qe7 {[%emt 0:00:37]} 11. Bg5 {[%emt 0:00:57]} h6 {[%emt 0:00:05]} 12. Bc1 {[%emt 0:00:01]} c5 {[%emt 0:01:08]} 13. d5 {[%emt 0:00:04]} exd5 {[%emt 0:00:21]} 14. exd5 {[%emt 0:00:03]} a6 {[%emt 0:02:19]} 15. O-O {[%emt 0:00:03]} Rae8 {[%emt 0:00:49]} 16. Rfe1 {[%emt 0:00:03]} Ne5 {[%emt 0:00:09]} 17. Nxe5 {[%emt 0:02:06]} Qxe5 {[%emt 0:00:07]} 18. Bd2 {[%emt 0:00:03]} Qe7 {[%emt 0:00:29]} 19. h3 {[%emt 0:01:54]} Qc7 {[%emt 0:00:18]} 20. Bf4 {[%emt 0:00:28]} Nd7 {[%emt 0:00:18]} 21. Bf1 {[%emt 0:00:36]} Bc8 {[%emt 0:00:39]} 22. Bg3 {[%emt 0:01:13]} Ne5 {[%emt 0:00:10]} 23. Qd2 {[%emt 0:00:38]} Kh7 {[%emt 0:00:27]} 24. f4 {[%emt 0:00:15]} Nd7 {[%emt 0:00:04]} 25. Bd3 {[%emt 0:00:06]} Bd4+ {[%emt 0:00:24]} 26. Bf2 {[%emt 0:00:03]} Bg7 {[%emt 0:00:28]} 27. Kh1 {[%emt 0:00:23]} f5 {[%emt 0:00:06]} 28. Kh2 {[%emt 0:02:26]} Nf6 {[%emt 0:00:07]} 29. Bh4 {[%emt 0:00:01]} Nh5 {[%emt 0:01:07]} 30. Kh1 {[%emt 0:00:05]} Bd4 {[%emt 0:00:12]} 31. Bf2 {[%emt 0:00:42]} Qg7 {[%emt 0:00:34]} 32. g3 {[%emt 0:00:09]} Bd7 {[%emt 0:00:09]} 33. Kh2 {[%emt 0:00:05]} Rxe1 {[%emt 0:00:50]} 34. Rxe1 {[%emt 0:00:01]} Re8 {[%emt 0:00:01]} 35. Rxe8 {[%emt 0:00:12]} Bxe8 {[%emt 0:00:01]} 36. Qe1 {[%emt 0:00:12]} Bxf2 {[%emt 0:00:41]} 37. Qxf2 {[%emt 0:00:01]} Bd7 {[%emt 0:00:20]} 38. Qe3 {[%emt 0:00:17]} Nf6 {[%emt 0:00:08]} 39. Bc2 {[%emt 0:00:32]} Ng8 {[%emt 0:00:11]} 40. Kg2 {[%emt 0:00:48]} Qe7 {[%emt 0:00:12]} 41. Kf2 {[%emt 0:00:02]} Kg7 {[%emt 0:00:06]} 42. Ba4 {[%emt 0:00:19]} Qxe3+ {[%emt 0:00:25]} 43. Kxe3 {[%emt 0:00:01]} Nf6 {[%emt 0:00:00]} 44. b4 {[%emt 0:00:20]} Bxa4 {[%emt 0:00:34]} 45. Nxa4 {[%emt 0:00:01]} Nd7 {[%emt 0:00:00]} 46. Nc3 {[%emt 0:00:41]} Kf6 {[%emt 0:00:06]} 47. b5 {[%emt 0:00:15]} a5 {[%emt 0:00:11]} 48. g4 {[%emt 0:00:19]} h5 {[%emt 0:01:33]} 49. Kf3 {[%emt 0:00:14]} hxg4+ {[%emt 0:00:13]} 50. hxg4 {[%emt 0:00:01]} g5 {[%emt 0:00:32]} 51. gxf5 {[%emt 0:01:20]} Kxf5 {[%emt 0:00:07]} 52. Ne4 {[%emt 0:00:01]} gxf4 {[%emt 0:00:10]} 53. Nxd6+ {[%emt 0:00:01]} Ke5 {[%emt 0:00:01]} 54. Nf7+ {[%emt 0:00:04]} Kf6 {[%emt 0:00:25]} 55. Nd6 {[%emt 0:00:01]} Ke5 {[%emt 0:00:06]} 56. Nf7+ {[%emt 0:00:02]} Kf6 {[%emt 0:00:04]} 1/2-1/2

[Event "HUN KO-ch Men 2019"]
[Site "Budapest"]
[Date "2019.12.11"]
[Round "1.3"]
[White "Nemeth, Miklos"]
[Black "Hera, Imre Jr."]
[Result "1/2-1/2"]
[ECO "C50"]
[WhiteElo "2496"]
[BlackElo "2619"]
[Annotator "ChessBase"]
[PlyCount "110"]
[EventDate "2019.12.10"]
[EventType "k.o."]
[EventCountry "HUN"]
[SourceTitle "playchess.com"]
[Source "ChessBase"]
[SourceQuality "1"]
[TimeControl "900+5"]

1. e4 {[%emt 0:00:02]} e5 {[%emt 0:00:01]} 2. Nf3 {[%emt 0:00:01]} Nc6 {[%emt 0:00:01]} 3. Bc4 {[%emt 0:00:01]} Bc5 {[%emt 0:00:02]} 4. a3 {[%emt 0:00:03]} d6 {[%emt 0:00:13]} 5. b4 {[%emt 0:00:13]} Bb6 {[%emt 0:00:01]} 6. d3 {[%emt 0:00:02]} Nf6 {[%emt 0:00:05]} 7. Be3 {[%emt 0:00:11]} O-O {[%emt 0:00:11]} 8. O-O {[%emt 0:00:22]} Bg4 {[%emt 0:00:53]} 9. h3 {[%emt 0:00:15]} Bh5 {[%emt 0:00:02]} 10. Nbd2 {[%emt 0:00:41]} Nd4 {[%emt 0:00:01]} 11. c3 {[%emt 0:00:05]} Nxf3+ {[%emt 0:00:35]} 12. Nxf3 {[%emt 0:00:02]} c6 {[%emt 0:00:08]} 13. Bxb6 {[%emt 0:00:15]} axb6 {[%emt 0:00:02]} 14. Qe2 {[%emt 0:00:09]} Re8 {[%emt 0:00:31]} 15. Bb3 {[%emt 0:01:10]} d5 {[%emt 0:00:32]} 16. Qe3 {[%emt 0:01:16]} h6 {[%emt 0:00:45]} 17. Nh4 {[%emt 0:01:35]} b5 {[%emt 0:01:14]} 18. Qg3 {[%emt 0:00:54]} Kh8 {[%emt 0:00:28]} 19. Rfe1 {[%emt 0:00:30]} dxe4 {[%emt 0:01:41]} 20. dxe4 {[%emt 0:00:04]} Qd2 {[%emt 0:00:31]} 21. Nf5 {[%emt 0:00:28]} Qg5 {[%emt 0:00:52]} 22. Qxg5 {[%emt 0:00:20]} hxg5 {[%emt 0:00:02]} 23. g4 {[%emt 0:00:06]} Bg6 {[%emt 0:00:00]} 24. Nd6 {[%emt 0:00:01]} Re7 {[%emt 0:00:01]} 25. f3 {[%emt 0:01:51]} Kg8 {[%emt 0:00:22]} 26. Red1 {[%emt 0:00:07]} Kf8 {[%emt 0:00:41]} 27. Kf2 {[%emt 0:00:34]} Rd7 {[%emt 0:00:45]} 28. c4 {[%emt 0:00:27]} Ke7 {[%emt 0:00:28]} 29. c5 {[%emt 0:00:09]} Ne8 {[%emt 0:00:12]} 30. Nxe8 {[%emt 0:00:25]} Kxe8 {[%emt 0:00:08]} 31. Rxd7 {[%emt 0:00:16]} Kxd7 {[%emt 0:00:02]} 32. a4 {[%emt 0:00:18]} bxa4 {[%emt 0:00:10]} 33. Rxa4 {[%emt 0:00:02]} Rd8 {[%emt 0:00:44]} 34. Ra1 {[%emt 0:01:07]} Kc7 {[%emt 0:00:01]} 35. Rd1 {[%emt 0:00:01]} Ra8 {[%emt 0:00:25]} 36. Ke2 {[%emt 0:00:10]} Rh8 {[%emt 0:01:03]} 37. Rh1 f6 38. Bc4 {[%emt 0:00:16]} Be8 {[%emt 0:00:11]} 39. Ke3 {[%emt 0:00:11]} Bd7 {[%emt 0:00:03]} 40. Bf7 {[%emt 0:00:11]} Kd8 {[%emt 0:00:20]} 41. Rh2 {[%emt 0:00:24]} Ke7 {[%emt 0:00:05]} 42. Bc4 {[%emt 0:00:01]} g6 {[%emt 0:00:26]} 43. Bf1 {[%emt 0:00:19]} Ra8 {[%emt 0:00:17]} 44. Rb2 {[%emt 0:00:07]} Ra3+ {[%emt 0:00:06]} 45. Kf2 {[%emt 0:00:10]} Be6 {[%emt 0:00:10]} 46. Be2 {[%emt 0:00:06]} f5 {[%emt 0:00:40]} 47. Kg2 {[%emt 0:00:41]} fxe4 {[%emt 0:00:13]} 48. fxe4 {[%emt 0:00:01]} Re3 {[%emt 0:00:19]} 49. Bf3 {[%emt 0:00:02]} Bc4 {[%emt 0:00:06]} 50. Kf2 {[%emt 0:00:03]} Ra3 {[%emt 0:00:06]} 51. Bg2 {[%emt 0:00:05]} Rc3 {[%emt 0:00:46]} 52. Ke1 {[%emt 0:00:14]} Re3+ {[%emt 0:00:05]} 53. Kf2 {[%emt 0:00:03]} Rc3 {[%emt 0:00:01]} 54. Ke1 {[%emt 0:00:01]} Re3+ {[%emt 0:00:07]} 55. Kf2 {[%emt 0:00:00]} Rc3 {[%emt 0:00:21]} 1/2-1/2